[Event "*** SCC Grand Prix: Titled Tuesday Blitz"]
[Site "Chess.com"]
[Date "2020.06.23"]
[Round "7"]
[White "alenee"]
[Black "viktorskliarov"]
[Result "0-1"]
[WhiteElo "2382"]
[BlackElo "2543"]
[TimeControl "180+1"]
[EndTime "11:18:05 PDT"]
[Termination "viktorskliarov won by resignation"]

1. e4 {[%clk 0:03:00.9]} 1... c5 {[%clk 0:02:59.1]} 2. Nf3 {[%clk 0:03:01]} 2...
Nc6 {[%clk 0:02:58.4]} 3. d4 {[%clk 0:03:00.5]} 3... cxd4 {[%clk 0:02:58.7]} 4.
Nxd4 {[%clk 0:03:01.2]} 4... Nf6 {[%clk 0:02:59.3]} 5. Nc3 {[%clk 0:03:01]} 5...
e5 {[%clk 0:02:58.8]} 6. Ndb5 {[%clk 0:03:01]} 6... d6 {[%clk 0:02:59.2]} 7. Bg5
{[%clk 0:03:01.6]} 7... a6 {[%clk 0:02:59.5]} 8. Na3 {[%clk 0:03:02.2]} 8... b5
{[%clk 0:03:00.1]} 9. Nd5 {[%clk 0:03:02.8]} 9... Be7 {[%clk 0:03:00.5]} 10.
Bxf6 {[%clk 0:03:03.5]} 10... Bxf6 {[%clk 0:03:00.9]} 11. c3 {[%clk 0:03:04.4]}
11... O-O {[%clk 0:03:00]} 12. Nc2 {[%clk 0:03:04.9]} 12... Rb8 {[%clk
0:03:00.6]} 13. Be2 {[%clk 0:03:04]} 13... Bg5 {[%clk 0:03:00.7]} 14. O-O {[%clk
0:03:00.1]} 14... Ne7 {[%clk 0:03:00.6]} 15. Ncb4 {[%clk 0:02:59.1]} 15... Bb7
{[%clk 0:02:57]} 16. Qd3 {[%clk 0:02:53.4]} 16... Nxd5 {[%clk 0:02:40.9]} 17.
Nxd5 {[%clk 0:02:53.3]} 17... g6 {[%clk 0:02:39.7]} 18. a4 {[%clk 0:02:47.8]}
18... bxa4 {[%clk 0:02:36.1]} 19. Rxa4 {[%clk 0:02:41.2]} 19... Bxd5 {[%clk
0:02:35]} 20. Qxd5 {[%clk 0:02:37.9]} 20... Rxb2 {[%clk 0:02:35.5]} 21. Bxa6
{[%clk 0:02:31.8]} 21... Qb6 {[%clk 0:02:33.1]} 22. Bc4 {[%clk 0:02:19.9]} 22...
Qc5 {[%clk 0:01:51.7]} 23. Qxc5 {[%clk 0:01:55.4]} 23... dxc5 {[%clk 0:01:51.3]}
24. Bd5 {[%clk 0:01:49.3]} 24... Bd2 {[%clk 0:01:38.1]} 25. c4 {[%clk
0:01:42.4]} 25... Bc3 {[%clk 0:01:37.6]} 26. Ra3 {[%clk 0:01:31.8]} 26... Bd4
{[%clk 0:01:20.8]} 27. Rf3 {[%clk 0:01:30.4]} 27... Kg7 {[%clk 0:01:20.5]} 28.
Rd1 {[%clk 0:01:20.1]} 28... f5 {[%clk 0:01:19.4]} 29. g3 {[%clk 0:01:07.1]}
29... fxe4 {[%clk 0:01:15.4]} 30. Rxf8 {[%clk 0:01:04.1]} 30... Kxf8 {[%clk
0:01:15.3]} 31. Bxe4 {[%clk 0:01:01.3]} 31... Bxf2+ {[%clk 0:01:10.6]} 32. Kg2
{[%clk 0:01:01.4]} 32... Bd4+ {[%clk 0:01:10.8]} 33. Kh3 {[%clk 0:00:53.3]}
33... Ke7 {[%clk 0:01:10.3]} 34. Bd5 {[%clk 0:00:50.9]} 34... h5 {[%clk
0:01:04.5]} 35. Rf1 {[%clk 0:00:50.3]} 35... g5 {[%clk 0:00:58.5]} 36. g4 {[%clk
0:00:41.5]} 36... h4 {[%clk 0:00:47.6]} 37. Rf5 {[%clk 0:00:33.5]} 37... Bg1
{[%clk 0:00:23.1]} 38. Bg2 {[%clk 0:00:18.7]} 38... e4 {[%clk 0:00:20.2]} 39.
Re5+ {[%clk 0:00:14.8]} 39... Kf6 {[%clk 0:00:19.1]} 40. Rxe4 {[%clk 0:00:15.1]}
40... Rb3+ {[%clk 0:00:18.8]} 41. Bf3 {[%clk 0:00:15.7]} 41... Bxh2 {[%clk
0:00:16.1]} 42. Kg2 {[%clk 0:00:11.3]} 42... Bf4 {[%clk 0:00:15.7]} 43. Re8
{[%clk 0:00:09.9]} 43... h3+ {[%clk 0:00:15.8]} 44. Kf2 {[%clk 0:00:08.6]} 44...
Rb2+ {[%clk 0:00:15.6]} 45. Kg1 {[%clk 0:00:06.2]} 45... h2+ {[%clk 0:00:16.1]}
46. Kh1 {[%clk 0:00:05.7]} 46... Rb1+ {[%clk 0:00:16]} 47. Bd1 {[%clk
0:00:06.2]} 47... Rxd1+ {[%clk 0:00:15.2]} 0-1

[Event "*** SCC Grand Prix: Titled Tuesday Blitz"]
[Site "Chess.com"]
[Date "2020.06.23"]
[Round "7"]
[White "akashcheck"]
[Black "jaskol95"]
[Result "1/2-1/2"]
[WhiteElo "2229"]
[BlackElo "2388"]
[TimeControl "180+1"]
[EndTime "11:18:06 PDT"]
[Termination "Game drawn - insufficient material"]

1. e4 {[%clk 0:03:00.9]} 1... e6 {[%clk 0:02:59.9]} 2. d4 {[%clk 0:03:00.2]}
2... d5 {[%clk 0:03:00.6]} 3. exd5 {[%clk 0:03:01.1]} 3... exd5 {[%clk
0:03:01.5]} 4. Nf3 {[%clk 0:03:01.7]} 4... Bd6 {[%clk 0:03:02]} 5. Bd3 {[%clk
0:03:01.7]} 5... Ne7 {[%clk 0:03:02.6]} 6. O-O {[%clk 0:03:01]} 6... h6 {[%clk
0:03:03.2]} 7. c3 {[%clk 0:02:58.9]} 7... O-O {[%clk 0:03:03.5]} 8. Nbd2 {[%clk
0:02:53.3]} 8... Nd7 {[%clk 0:03:03.2]} 9. Re1 {[%clk 0:02:52.6]} 9... f5 {[%clk
0:02:59.7]} 10. Ne5 {[%clk 0:02:46.1]} 10... Bxe5 {[%clk 0:03:00.1]} 11. dxe5
{[%clk 0:02:45.9]} 11... Nc5 {[%clk 0:03:00.8]} 12. Bc2 {[%clk 0:02:43.6]} 12...
Be6 {[%clk 0:02:59.6]} 13. Nf3 {[%clk 0:02:42.7]} 13... c6 {[%clk 0:02:59]} 14.
Nd4 {[%clk 0:02:42.1]} 14... Qd7 {[%clk 0:02:55.3]} 15. b4 {[%clk 0:02:31.6]}
15... Na6 {[%clk 0:02:52.7]} 16. Qd3 {[%clk 0:02:24.7]} 16... Nc7 {[%clk
0:02:43.7]} 17. Bb3 {[%clk 0:02:13.4]} 17... a5 {[%clk 0:02:36.2]} 18. bxa5
{[%clk 0:02:08.1]} 18... Rxa5 {[%clk 0:02:33.6]} 19. Nxe6 {[%clk 0:02:05.8]}
19... Nxe6 {[%clk 0:02:28.7]} 20. c4 {[%clk 0:02:05.1]} 20... Nc5 {[%clk
0:02:23.9]} 21. Qc3 {[%clk 0:02:02.5]} 21... Nxb3 {[%clk 0:02:23.5]} 22. axb3
{[%clk 0:02:00.4]} 22... Rxa1 {[%clk 0:02:22.9]} 23. Qxa1 {[%clk 0:02:01.3]}
23... d4 {[%clk 0:02:18.3]} 24. Ba3 {[%clk 0:01:54.5]} 24... b6 {[%clk
0:02:14.6]} 25. Bxe7 {[%clk 0:01:51.5]} 25... Qxe7 {[%clk 0:02:14.8]} 26. Qxd4
{[%clk 0:01:51.9]} 26... c5 {[%clk 0:02:14.7]} 27. Qd5+ {[%clk 0:01:42.3]} 27...
Kh7 {[%clk 0:02:13.6]} 28. Qd6 {[%clk 0:01:38.6]} 28... Qxd6 {[%clk 0:02:01.2]}
29. exd6 {[%clk 0:01:39.5]} 29... Rd8 {[%clk 0:02:00.2]} 30. Re6 {[%clk
0:01:39.3]} 30... Kg8 {[%clk 0:01:59.6]} 31. f4 {[%clk 0:01:20.5]} 31... Kf7
{[%clk 0:01:58.1]} 32. Re5 {[%clk 0:01:20.4]} 32... g6 {[%clk 0:01:57.4]} 33.
Re7+ {[%clk 0:00:50.7]} 33... Kf6 {[%clk 0:01:56.9]} 34. Rh7 {[%clk 0:00:51]}
34... Rxd6 {[%clk 0:01:55.6]} 35. Rxh6 {[%clk 0:00:51.1]} 35... Rd1+ {[%clk
0:01:23.2]} 36. Kf2 {[%clk 0:00:50.5]} 36... Rd2+ {[%clk 0:01:24.1]} 37. Kf1
{[%clk 0:00:43.3]} 37... Rd1+ {[%clk 0:01:14.3]} 38. Ke2 {[%clk 0:00:41.6]}
38... Rb1 {[%clk 0:01:14.8]} 39. Rh3 {[%clk 0:00:40]} 39... Rb2+ {[%clk
0:01:15.3]} 40. Kf1 {[%clk 0:00:34.9]} 40... Rb1+ {[%clk 0:01:15.5]} 41. Kf2
{[%clk 0:00:34.9]} 41... Rb2+ {[%clk 0:01:16.1]} 42. Kf1 {[%clk 0:00:22.7]}
42... g5 {[%clk 0:01:16.5]} 43. Rh6+ {[%clk 0:00:20.8]} 43... Kg7 {[%clk
0:01:16.9]} 44. Rxb6 {[%clk 0:00:19.1]} 44... gxf4 {[%clk 0:01:17.5]} 45. Rb5
{[%clk 0:00:18.8]} 45... Kf6 {[%clk 0:01:17.2]} 46. Rxc5 {[%clk 0:00:18]} 46...
Rxb3 {[%clk 0:01:16.6]} 47. h3 {[%clk 0:00:18.3]} 47... Rb2 {[%clk 0:01:12.7]}
48. Rc8 {[%clk 0:00:17.9]} 48... Ke5 {[%clk 0:01:11.8]} 49. c5 {[%clk
0:00:17.8]} 49... Ke4 {[%clk 0:01:10.1]} 50. c6 {[%clk 0:00:16.6]} 50... f3
{[%clk 0:01:10.7]} 51. gxf3+ {[%clk 0:00:15.2]} 51... Kxf3 {[%clk 0:01:10.9]}
52. Ke1 {[%clk 0:00:15.1]} 52... Rc2 {[%clk 0:01:10.4]} 53. c7 {[%clk
0:00:13.3]} 53... f4 {[%clk 0:01:10.6]} 54. Kd1 {[%clk 0:00:12.4]} 54... Rc6
{[%clk 0:01:09.7]} 55. h4 {[%clk 0:00:11.9]} 55... Kf2 {[%clk 0:01:03.3]} 56. h5
{[%clk 0:00:12]} 56... f3 {[%clk 0:01:01.3]} 57. h6 {[%clk 0:00:06.1]} 57...
Rd6+ {[%clk 0:00:57.9]} 58. Kc2 {[%clk 0:00:06.2]} 58... Rxh6 {[%clk 0:00:58.4]}
59. Kd3 {[%clk 0:00:04.8]} 59... Rc6 {[%clk 0:00:58.7]} 60. Kd4 {[%clk
0:00:04.9]} 60... Kf1 {[%clk 0:00:56.5]} 61. Kd5 {[%clk 0:00:05.1]} 61... Rc1
{[%clk 0:00:56.8]} 62. Kd6 {[%clk 0:00:05.1]} 62... f2 {[%clk 0:00:57.3]} 63.
Rf8 {[%clk 0:00:05.3]} 63... Ke2 {[%clk 0:00:56]} 64. Rxf2+ {[%clk 0:00:05.4]}
64... Kxf2 {[%clk 0:00:55.8]} 65. Kd7 {[%clk 0:00:05.9]} 65... Rxc7+ {[%clk
0:00:56.1]} 66. Kxc7 {[%clk 0:00:05.9]} 1/2-1/2

[Event "*** SCC Grand Prix: Titled Tuesday Blitz"]
[Site "Chess.com"]
[Date "2020.06.23"]
[Round "7"]
[White "Angry_Twin"]
[Black "GeorgMeier"]
[Result "1-0"]
[WhiteElo "2810"]
[BlackElo "2898"]
[TimeControl "180+1"]
[EndTime "11:18:07 PDT"]
[Termination "Angry_Twin won on time"]

1. e4 {[%clk 0:03:00.9]} 1... e6 {[%clk 0:02:48.2]} 2. d4 {[%clk 0:03:00.6]}
2... d5 {[%clk 0:02:48.6]} 3. Nc3 {[%clk 0:03:01.2]} 3... dxe4 {[%clk
0:02:49.5]} 4. Nxe4 {[%clk 0:03:02.1]} 4... Nd7 {[%clk 0:02:50.1]} 5. Nf3 {[%clk
0:03:02]} 5... Ngf6 {[%clk 0:02:51]} 6. Nxf6+ {[%clk 0:03:02.5]} 6... Nxf6
{[%clk 0:02:51.9]} 7. Be3 {[%clk 0:03:00.9]} 7... Bd6 {[%clk 0:02:51.4]} 8. Bd3
{[%clk 0:02:59.2]} 8... b6 {[%clk 0:02:51.3]} 9. Qe2 {[%clk 0:02:59.3]} 9... Bb7
{[%clk 0:02:51.5]} 10. O-O-O {[%clk 0:02:59.8]} 10... O-O {[%clk 0:02:51.9]} 11.
Kb1 {[%clk 0:02:59.1]} 11... c5 {[%clk 0:02:49.2]} 12. dxc5 {[%clk 0:02:57.8]}
12... bxc5 {[%clk 0:02:48.4]} 13. Bg5 {[%clk 0:02:28.9]} 13... h6 {[%clk
0:02:46.4]} 14. Bxf6 {[%clk 0:02:27.5]} 14... Qxf6 {[%clk 0:02:46.2]} 15. Be4
{[%clk 0:02:27.7]} 15... Rab8 {[%clk 0:02:14.9]} 16. b3 {[%clk 0:02:22.1]} 16...
Bxe4 {[%clk 0:01:57]} 17. Qxe4 {[%clk 0:02:23]} 17... Rfd8 {[%clk 0:01:57.5]}
18. Rd3 {[%clk 0:02:17.8]} 18... Bf8 {[%clk 0:01:56.6]} 19. Rhd1 {[%clk
0:02:16.3]} 19... g5 {[%clk 0:01:28.9]} 20. Qe5 {[%clk 0:01:45.1]} 20... Bg7
{[%clk 0:00:49.2]} 21. Qxf6 {[%clk 0:01:13.4]} 21... Bxf6 {[%clk 0:00:50.1]} 22.
Rxd8+ {[%clk 0:01:00.1]} 22... Rxd8 {[%clk 0:00:51]} 23. Rxd8+ {[%clk
0:01:00.6]} 23... Bxd8 {[%clk 0:00:51.5]} 24. Kb2 {[%clk 0:01:01.1]} 24... c4
{[%clk 0:00:50.7]} 25. Nd2 {[%clk 0:00:39.8]} 25... cxb3 {[%clk 0:00:45.3]} 26.
axb3 {[%clk 0:00:38.2]} 26... Bb6 {[%clk 0:00:34.4]} 27. f3 {[%clk 0:00:37.7]}
27... f5 {[%clk 0:00:32.9]} 28. Kc3 {[%clk 0:00:37.4]} 28... Kf7 {[%clk
0:00:31.1]} 29. Kc4 {[%clk 0:00:28.7]} 29... Be3 {[%clk 0:00:18.7]} 30. Nb1
{[%clk 0:00:25.8]} 30... Kf6 {[%clk 0:00:17.4]} 31. Kb5 {[%clk 0:00:10]} 31...
Ke5 {[%clk 0:00:17]} 32. Nc3 {[%clk 0:00:09.6]} 32... Bg1 {[%clk 0:00:13]} 33.
h3 {[%clk 0:00:08.5]} 33... Bf2 {[%clk 0:00:11.7]} 34. Ne2 {[%clk 0:00:08.6]}
34... Kd6 {[%clk 0:00:10.6]} 35. c4 {[%clk 0:00:08.9]} 35... e5 {[%clk
0:00:10.2]} 36. b4 {[%clk 0:00:09.1]} 36... e4 {[%clk 0:00:10.5]} 37. c5+ {[%clk
0:00:08]} 37... Ke5 {[%clk 0:00:09.1]} 38. fxe4 {[%clk 0:00:08]} 38... fxe4
{[%clk 0:00:08.4]} 39. Kc4 {[%clk 0:00:07.1]} 39... h5 {[%clk 0:00:07.7]} 40. b5
{[%clk 0:00:05.7]} 40... g4 {[%clk 0:00:07.2]} 41. hxg4 {[%clk 0:00:05.6]} 41...
hxg4 {[%clk 0:00:08.1]} 42. c6 {[%clk 0:00:04.8]} 42... Bb6 {[%clk 0:00:07.8]}
43. Nc3 {[%clk 0:00:03.5]} 43... e3 {[%clk 0:00:04.6]} 44. Kd3 {[%clk
0:00:03.5]} 44... Bc5 {[%clk 0:00:03.2]} 45. Nd1 {[%clk 0:00:03.6]} 45... Kf4
{[%clk 0:00:03]} 46. c7 {[%clk 0:00:03.9]} 1-0

[Event "*** SCC Grand Prix: Titled Tuesday Blitz"]
[Site "Chess.com"]
[Date "2020.06.23"]
[Round "7"]
[White "Ekka83"]
[Black "Ashedu66"]
[Result "1-0"]
[WhiteElo "2351"]
[BlackElo "2164"]
[TimeControl "180+1"]
[EndTime "11:18:10 PDT"]
[Termination "Ekka83 won on time"]

1. e4 {[%clk 0:03:00.9]} 1... e5 {[%clk 0:02:59.2]} 2. Nf3 {[%clk 0:02:59.9]}
2... Nc6 {[%clk 0:02:59.2]} 3. d4 {[%clk 0:02:59.2]} 3... exd4 {[%clk
0:02:58.4]} 4. Nxd4 {[%clk 0:03:00.1]} 4... Bb4+ {[%clk 0:02:58.3]} 5. c3 {[%clk
0:02:59.5]} 5... Be7 {[%clk 0:02:58.2]} 6. Nf5 {[%clk 0:02:59.3]} 6... d5 {[%clk
0:02:51.1]} 7. Nxg7+ {[%clk 0:02:55.2]} 7... Kf8 {[%clk 0:02:50]} 8. exd5 {[%clk
0:02:52.3]} 8... Kxg7 {[%clk 0:02:16.5]} 9. dxc6 {[%clk 0:02:50.3]} 9... Qxd1+
{[%clk 0:02:10.8]} 10. Kxd1 {[%clk 0:02:51.2]} 10... bxc6 {[%clk 0:02:09.7]} 11.
Bf4 {[%clk 0:02:42]} 11... Bd6 {[%clk 0:01:52.9]} 12. Be3 {[%clk 0:02:37.4]}
12... Nf6 {[%clk 0:01:51.5]} 13. f3 {[%clk 0:02:33.7]} 13... Re8 {[%clk
0:01:42.1]} 14. Bd4 {[%clk 0:02:31.4]} 14... c5 {[%clk 0:01:41.2]} 15. Bxf6+
{[%clk 0:02:30.4]} 15... Kxf6 {[%clk 0:01:40.7]} 16. Bb5 {[%clk 0:02:30.5]}
16... Rg8 {[%clk 0:01:37.5]} 17. g3 {[%clk 0:02:24.2]} 17... Bb7 {[%clk
0:01:36.8]} 18. Rf1 {[%clk 0:02:19.4]} 18... h5 {[%clk 0:01:31.7]} 19. Nd2
{[%clk 0:02:15.3]} 19... Rad8 {[%clk 0:01:11.3]} 20. Kc2 {[%clk 0:02:07.7]}
20... h4 {[%clk 0:01:01.7]} 21. Ne4+ {[%clk 0:02:07]} 21... Kg6 {[%clk
0:00:55.6]} 22. Bd3 {[%clk 0:02:02.3]} 22... f5 {[%clk 0:00:51.7]} 23. Nxd6
{[%clk 0:01:54.4]} 23... Rxd6 {[%clk 0:00:51.3]} 24. gxh4 {[%clk 0:01:52.5]}
24... Kf6 {[%clk 0:00:48.5]} 25. Rg1 {[%clk 0:01:49.1]} 25... Rgd8 {[%clk
0:00:47.3]} 26. Bc4 {[%clk 0:01:29]} 26... Rd2+ {[%clk 0:00:43.7]} 27. Kb3
{[%clk 0:01:27.4]} 27... Bxf3 {[%clk 0:00:39.9]} 28. Rae1 {[%clk 0:01:25]} 28...
Be4 {[%clk 0:00:29.8]} 29. Ka3 {[%clk 0:01:19.1]} 29... Rxh2 {[%clk 0:00:26.2]}
30. Rgf1 {[%clk 0:01:17.3]} 30... Ke5 {[%clk 0:00:25.4]} 31. h5 {[%clk
0:01:00.1]} 31... Rdd2 {[%clk 0:00:20.6]} 32. b4 {[%clk 0:00:50.9]} 32... cxb4+
{[%clk 0:00:19.5]} 33. cxb4 {[%clk 0:00:50.5]} 33... Rxh5 {[%clk 0:00:16.8]} 34.
Bf7 {[%clk 0:00:49.5]} 34... Rh3+ {[%clk 0:00:15.3]} 35. Ka4 {[%clk 0:00:48.8]}
35... Rh6 {[%clk 0:00:08.8]} 36. Ka5 {[%clk 0:00:45.1]} 36... Rb6 {[%clk
0:00:08.5]} 37. Bc4 {[%clk 0:00:42.2]} 37... Rd4 {[%clk 0:00:07.8]} 38. Rc1
{[%clk 0:00:40.3]} 38... f4 {[%clk 0:00:07.5]} 39. b5 {[%clk 0:00:33.8]} 39...
f3 {[%clk 0:00:07.3]} 40. Rce1 {[%clk 0:00:33.5]} 40... Kf4 {[%clk 0:00:07]} 41.
Kb4 {[%clk 0:00:30.1]} 41... Rbd6 {[%clk 0:00:06.4]} 42. Kc5 {[%clk 0:00:29]}
42... Rf6 {[%clk 0:00:05.6]} 43. Kxd4 {[%clk 0:00:28]} 43... Rd6+ {[%clk
0:00:05.4]} 44. Kc5 {[%clk 0:00:27.7]} 44... Rd2 {[%clk 0:00:05.4]} 45. a4
{[%clk 0:00:21.8]} 45... Rc2 {[%clk 0:00:04.5]} 46. Kd4 {[%clk 0:00:20]} 46...
Rd2+ {[%clk 0:00:03.4]} 47. Kc3 {[%clk 0:00:20]} 47... Rd6 {[%clk 0:00:02.5]}
48. a5 {[%clk 0:00:19.1]} 48... Rh6 {[%clk 0:00:01.9]} 49. Rd1 {[%clk
0:00:18.7]} 1-0

[Event "*** SCC Grand Prix: Titled Tuesday Blitz"]
[Site "Chess.com"]
[Date "2020.06.23"]
[Round "7"]
[White "larbiben"]
[Black "NotFischer"]
[Result "0-1"]
[WhiteElo "2023"]
[BlackElo "2197"]
[TimeControl "180+1"]
[EndTime "11:18:10 PDT"]
[Termination "NotFischer won on time"]

1. e4 {[%clk 0:03:00.9]} 1... c5 {[%clk 0:02:56.7]} 2. c3 {[%clk 0:02:59.8]}
2... d5 {[%clk 0:02:56]} 3. exd5 {[%clk 0:02:59.4]} 3... Qxd5 {[%clk 0:02:56.9]}
4. d4 {[%clk 0:02:59.2]} 4... Nf6 {[%clk 0:02:55.8]} 5. Nf3 {[%clk 0:02:58.4]}
5... Bg4 {[%clk 0:02:55.3]} 6. Qa4+ {[%clk 0:02:54.6]} 6... Nc6 {[%clk
0:02:52.8]} 7. Bc4 {[%clk 0:02:40]} 7... Qe4+ {[%clk 0:02:49]} 8. Be3 {[%clk
0:02:37.2]} 8... cxd4 {[%clk 0:02:16.3]} 9. Nbd2 {[%clk 0:02:14.1]} 9... Qf5
{[%clk 0:01:53.6]} 10. Nxd4 {[%clk 0:01:57.7]} 10... Qd7 {[%clk 0:01:53.1]} 11.
Bb5 {[%clk 0:01:47.5]} 11... Rc8 {[%clk 0:01:52.2]} 12. Nc4 {[%clk 0:01:20.1]}
12... Qc7 {[%clk 0:00:33.8]} 13. Nxc6 {[%clk 0:01:02.4]} 13... bxc6 {[%clk
0:00:33.1]} 14. Ba6 {[%clk 0:01:01.1]} 14... Rd8 {[%clk 0:00:26.9]} 15. O-O
{[%clk 0:00:41.2]} 15... e6 {[%clk 0:00:25.8]} 16. Bg5 {[%clk 0:00:31.5]} 16...
Be7 {[%clk 0:00:20.4]} 17. Na5 {[%clk 0:00:29.2]} 17... Bf5 {[%clk 0:00:06.8]}
18. Nb7 {[%clk 0:00:26.5]} 18... Rd7 {[%clk 0:00:04.5]} 19. Bxf6 {[%clk
0:00:24.5]} 19... Bxf6 {[%clk 0:00:04]} 20. Nc5 {[%clk 0:00:24.5]} 20... Re7
{[%clk 0:00:04.4]} 21. h3 {[%clk 0:00:14.5]} 21... O-O {[%clk 0:00:04.4]} 22.
Bd3 {[%clk 0:00:14.2]} 22... Bxd3 {[%clk 0:00:04.1]} 23. Nxd3 {[%clk 0:00:15.1]}
23... Rd8 {[%clk 0:00:04.6]} 24. Nc5 {[%clk 0:00:13.9]} 24... Red7 {[%clk
0:00:04.9]} 25. Nxd7 {[%clk 0:00:13.4]} 25... Rxd7 {[%clk 0:00:05.8]} 26. Rad1
{[%clk 0:00:13.5]} 26... Rxd1 {[%clk 0:00:05.1]} 27. Rxd1 {[%clk 0:00:14.4]}
27... g6 {[%clk 0:00:05.7]} 28. Qd4 {[%clk 0:00:13.5]} 28... Bxd4 {[%clk
0:00:05.2]} 29. Rxd4 {[%clk 0:00:13.6]} 29... Kg7 {[%clk 0:00:06.1]} 30. g3
{[%clk 0:00:12.6]} 30... a5 {[%clk 0:00:06.6]} 31. a4 {[%clk 0:00:11.8]} 31...
Qb6 {[%clk 0:00:07]} 32. b4 {[%clk 0:00:11]} 32... axb4 {[%clk 0:00:07]} 33.
Rxb4 {[%clk 0:00:11.9]} 33... Qa6 {[%clk 0:00:07.4]} 34. Kg2 {[%clk 0:00:11]}
34... Qe2 {[%clk 0:00:07.9]} 35. h4 {[%clk 0:00:10]} 35... Qd3 {[%clk
0:00:08.4]} 36. Rb3 {[%clk 0:00:07.7]} 36... Qc4 {[%clk 0:00:08.2]} 37. Ra3
{[%clk 0:00:06.9]} 37... Qc5 {[%clk 0:00:08.5]} 38. Ra1 {[%clk 0:00:05.9]} 38...
Qxc3 {[%clk 0:00:08.7]} 39. Rd1 {[%clk 0:00:05.7]} 39... Qc2 {[%clk 0:00:08.3]}
40. Rd4 {[%clk 0:00:04.7]} 40... Qc5 {[%clk 0:00:07.8]} 41. Rf4 {[%clk
0:00:04.5]} 41... Qd5+ {[%clk 0:00:07.9]} 42. Kh2 {[%clk 0:00:03.9]} 42... c5
{[%clk 0:00:08.8]} 43. a5 {[%clk 0:00:03]} 43... c4 {[%clk 0:00:09.2]} 44. a6
{[%clk 0:00:02.8]} 44... c3 {[%clk 0:00:09.6]} 45. a7 {[%clk 0:00:02.5]} 45...
c2 {[%clk 0:00:10]} 46. Rc4 {[%clk 0:00:01.9]} 46... Qxc4 {[%clk 0:00:07.8]} 0-1

[Event "*** SCC Grand Prix: Titled Tuesday Blitz"]
[Site "Chess.com"]
[Date "2020.06.23"]
[Round "7"]
[White "Micki-taryan"]
[Black "Onischuk_V"]
[Result "1/2-1/2"]
[WhiteElo "3032"]
[BlackElo "2898"]
[TimeControl "180+1"]
[EndTime "11:18:11 PDT"]
[Termination "Game drawn - insufficient material"]

1. e4 {[%clk 0:03:00.9]} 1... d6 {[%clk 0:03:00.3]} 2. Nf3 {[%clk 0:03:00.5]}
2... Nf6 {[%clk 0:03:00.5]} 3. Nc3 {[%clk 0:03:01]} 3... g6 {[%clk 0:03:01.1]}
4. d4 {[%clk 0:03:01.6]} 4... Bg7 {[%clk 0:03:01.5]} 5. Be3 {[%clk 0:03:00.2]}
5... O-O {[%clk 0:02:52.9]} 6. h3 {[%clk 0:03:00]} 6... d5 {[%clk 0:02:51.7]} 7.
exd5 {[%clk 0:02:34.9]} 7... Nxd5 {[%clk 0:02:51.5]} 8. Nxd5 {[%clk 0:02:35.8]}
8... Qxd5 {[%clk 0:02:51.7]} 9. c3 {[%clk 0:02:36.7]} 9... Nc6 {[%clk
0:02:46.4]} 10. Be2 {[%clk 0:02:34.6]} 10... e5 {[%clk 0:02:40.2]} 11. dxe5
{[%clk 0:02:29.7]} 11... Qxd1+ {[%clk 0:02:40]} 12. Rxd1 {[%clk 0:02:28.9]}
12... Nxe5 {[%clk 0:02:40.3]} 13. O-O {[%clk 0:02:25.9]} 13... Nxf3+ {[%clk
0:02:38.2]} 14. Bxf3 {[%clk 0:02:25.6]} 14... c6 {[%clk 0:02:38.9]} 15. Rfe1
{[%clk 0:02:19.8]} 15... Be6 {[%clk 0:02:38.2]} 16. a4 {[%clk 0:02:15.5]} 16...
a6 {[%clk 0:02:29.5]} 17. a5 {[%clk 0:02:13.5]} 17... Rfd8 {[%clk 0:02:27.7]}
18. Bb6 {[%clk 0:02:10.5]} 18... Rxd1 {[%clk 0:02:27.3]} 19. Rxd1 {[%clk
0:02:11.4]} 19... Bf8 {[%clk 0:02:24.5]} 20. Bg4 {[%clk 0:01:52.5]} 20... f5
{[%clk 0:02:23.7]} 21. Bf3 {[%clk 0:01:50.3]} 21... Kf7 {[%clk 0:02:24.2]} 22.
g4 {[%clk 0:01:47.5]} 22... Re8 {[%clk 0:02:19.5]} 23. Kg2 {[%clk 0:01:45.8]}
23... Bg7 {[%clk 0:02:11]} 24. Bc5 {[%clk 0:01:40.3]} 24... Bf6 {[%clk
0:02:09.9]} 25. Kg3 {[%clk 0:01:33.9]} 25... Rd8 {[%clk 0:02:07.7]} 26. Rxd8
{[%clk 0:01:28.6]} 26... Bxd8 {[%clk 0:02:07.1]} 27. Bb6 {[%clk 0:01:28.2]}
27... Bg5 {[%clk 0:02:04.8]} 28. b4 {[%clk 0:01:24.9]} 28... Be7 {[%clk
0:01:50.3]} 29. Bd4 {[%clk 0:01:22.5]} 29... Bd6+ {[%clk 0:01:49.5]} 30. Kg2
{[%clk 0:01:21.9]} 30... fxg4 {[%clk 0:01:45]} 31. hxg4 {[%clk 0:01:16.8]} 31...
Bd5 {[%clk 0:01:43.4]} 32. Bxd5+ {[%clk 0:01:14]} 32... cxd5 {[%clk 0:01:43.3]}
33. Be3 {[%clk 0:01:11.9]} 33... h5 {[%clk 0:01:33.9]} 34. Kh3 {[%clk
0:01:07.1]} 34... Be5 {[%clk 0:01:19]} 35. Bd2 {[%clk 0:01:05.1]} 35... Bf6
{[%clk 0:00:56.2]} 36. Kg3 {[%clk 0:01:01.4]} 36... Ke6 {[%clk 0:00:54.7]} 37.
f4 {[%clk 0:00:58.9]} 37... hxg4 {[%clk 0:00:48.1]} 38. Kxg4 {[%clk 0:00:59.8]}
38... Be7 {[%clk 0:00:38.8]} 39. Be3 {[%clk 0:00:57.6]} 39... Bf6 {[%clk
0:00:38]} 40. Bd2 {[%clk 0:00:54.2]} 40... Kd6 {[%clk 0:00:34.6]} 41. f5 {[%clk
0:00:52.3]} 41... gxf5+ {[%clk 0:00:34.3]} 42. Kxf5 {[%clk 0:00:53.2]} 42... Bg7
{[%clk 0:00:34.4]} 43. Bf4+ {[%clk 0:00:46.4]} 43... Kc6 {[%clk 0:00:34.3]} 44.
Be5 {[%clk 0:00:46.8]} 44... Bh6 {[%clk 0:00:33.6]} 45. Ke6 {[%clk 0:00:44.2]}
45... Bd2 {[%clk 0:00:28]} 46. Bf6 {[%clk 0:00:43.6]} 46... Be1 {[%clk
0:00:26.8]} 47. Be5 {[%clk 0:00:43.5]} 47... Bf2 {[%clk 0:00:23.1]} 48. Bf6
{[%clk 0:00:41.6]} 48... b6 {[%clk 0:00:13.3]} 49. Bd4 {[%clk 0:00:33.7]} 49...
bxa5 {[%clk 0:00:12.2]} 50. Bxf2 {[%clk 0:00:29.8]} 50... axb4 {[%clk
0:00:08.1]} 51. cxb4 {[%clk 0:00:29.9]} 51... a5 {[%clk 0:00:08]} 52. bxa5
{[%clk 0:00:27.7]} 52... Kb7 {[%clk 0:00:08.5]} 53. Kxd5 {[%clk 0:00:27.2]}
53... Ka8 {[%clk 0:00:08.6]} 54. Kc6 {[%clk 0:00:27.2]} 54... Kb8 {[%clk
0:00:08.9]} 55. a6 {[%clk 0:00:27.6]} 55... Ka8 {[%clk 0:00:09.2]} 56. Kb6
{[%clk 0:00:26.7]} 56... Kb8 {[%clk 0:00:09.4]} 57. Bg3+ {[%clk 0:00:27.3]}
57... Ka8 {[%clk 0:00:09.9]} 58. Bb8 {[%clk 0:00:27.9]} 58... Kxb8 {[%clk
0:00:09.9]} 59. a7+ {[%clk 0:00:28.7]} 59... Ka8 {[%clk 0:00:10.6]} 60. Kc7
{[%clk 0:00:27.8]} 60... Kxa7 {[%clk 0:00:10.9]} 1/2-1/2